fUSD/lending_fUSD_20250507
["ID","MTS","AMOUNT","RATE_DAILY","PERIOD"]
[360167080,1746587449520,-450.0,0.00019649,2]
[360167081,1746587449529,-472.37,0.00019649,2]
[360167082,1746587449540,-450.0,0.00019649,2]
[360167083,1746587449549,-450.0,0.00019649,2]
[360167084,1746587449558,-450.0,0.00019649,2]
[360167085,1746587449568,-456.56,0.00019649,2]
[360167086,1746587449577,-450.0,0.00019649,2]
[360167087,1746587449587,-1548.58,0.00019649,2]
[360167088,1746587449596,-450.0,0.00019649,2]
[360167089,1746587449606,-151.0,0.00019649,2]
[360167090,1746587449616,-450.0,0.00019649,2]
[360167091,1746587449625,-450.0,0.00019649,2]
[360167092,1746587449635,-283.048749,0.0001965,2]
[360167093,1746587449643,-283.048749,0.0001965,2]
[360167094,1746587449653,-283.048749,0.0001965,2]
[360167095,1746587449662,-283.048749,0.0001965,2]
[360167096,1746587449672,-450.0,0.0001965,2]
[360167097,1746587449682,-450.0,0.0001965,2]
[360167098,1746587449691,-151.0,0.0001965,2]
[360167099,1746587449700,-618.31,0.0001965,2]
[360167100,1746587449710,-450.0,0.0001965,2]
[360167101,1746587449719,-151.0,0.0001965,2]
[360167102,1746587449729,-450.0,0.0001965,2]
[360167103,1746587449738,-450.0,0.0001965,2]
[360167104,1746587449748,-450.0,0.0001965,2]
[360167105,1746587449760,-151.0,0.0001965,2]
[360167106,1746587449769,-450.0,0.0001965,2]
[360167107,1746587449778,-410.90564237,0.0001965,2]
[360167108,1746587449832,-450.0,0.0001965,2]
[360167109,1746587449841,-242.63559,0.0001965,2]
[360167110,1746587449850,-242.63559,0.0001965,2]
[360167111,1746587449859,-257.625343,0.0001965,2]
[360167112,1746587449868,-450.0,0.0001965,2]
[360167113,1746587449877,-257.625343,0.0001965,2]
[360167114,1746587449885,-151.0,0.0001965,2]
[360167115,1746587449894,-157.905856,0.0001965,2]
[360167116,1746587449903,-450.0,0.0001965,2]
[360167117,1746587449912,-450.0,0.0001965,2]
[360167118,1746587449921,-770.311871,0.0001965,2]
[360167119,1746587449931,-770.311871,0.0001965,2]
[360167120,1746587449940,-277.682923,0.0001965,2]
[360167121,1746587449949,-450.0,0.0001965,2]
[360167122,1746587449958,-450.0,0.0001965,2]
[360167123,1746587449967,-151.0,0.0001965,2]
[360167124,1746587449976,-450.0,0.0001965,2]
[360167125,1746587449984,-151.0,0.0001965,2]
[360167126,1746587449993,-151.0,0.0001965,2]
[360167127,1746587450002,-152.535741,0.0001965,2]
[360167128,1746587450011,-151.0,0.0001965,2]
[360167129,1746587450020,-154.155165,0.0001965,2]
[360167130,1746587450029,-151.936966,0.0001965,2]
[360167131,1746587450038,-535.99,0.0001965,2]
[360167132,1746587450047,-450.0,0.0001965,2]
[360167133,1746587450056,-450.0,0.0001965,2]
[360167134,1746587450065,-450.0,0.0001965,2]
[360167135,1746587450074,-631.66,0.0001965,2]
[360167136,1746587450083,-151.0,0.0001965,2]
[360167137,1746587450093,-450.0,0.0001965,2]
[360167138,1746587450102,-450.0,0.0001965,2]
[360167139,1746587450111,-4784.43847549,0.0001965,2]
[360167140,1746587450120,-668.25,0.0001965,2]
[360167141,1746587450130,-450.0,0.0001965,2]
[360167142,1746587450139,-450.0,0.0001965,2]
[360167143,1746587450148,-450.0,0.0001965,2]
[360167144,1746587450157,-151.0,0.0001965,2]
[360167145,1746587450166,-151.0,0.0001965,2]
[360167146,1746587450175,-151.0,0.0001965,2]
[360167147,1746587450185,-151.0,0.0001965,2]
[360167148,1746587450195,-164.933933,0.0001965,2]
[360167149,1746587450205,-450.0,0.0001965,2]
[360167150,1746587450214,-450.0,0.0001965,2]
[360167151,1746587450224,-450.0,0.0001965,2]
[360167152,1746587450233,-760.47,0.0001965,2]
[360167153,1746587450242,-460.31,0.0001965,2]
[360167154,1746587450251,-450.0,0.0001965,2]
[360167155,1746587450261,-151.0,0.0001965,2]
[360167156,1746587450270,-450.0,0.0001965,2]
[360167157,1746587450279,-450.0,0.0001965,2]
[360167158,1746587450289,-151.0,0.0001965,2]
[360167159,1746587450298,-151.0,0.0001965,2]
[360167160,1746587450307,-750.67,0.0001965,2]
[360167161,1746587450317,-151.0,0.0001965,2]
[360167162,1746587450326,-476.98,0.0001965,2]
[360167163,1746587450335,-213.414309,0.0001965,2]
[360167164,1746587450345,-450.0,0.0001965,2]
[360167165,1746587450354,-151.0,0.0001965,2]
[360167166,1746587450363,-450.0,0.0001965,2]
[360167167,1746587450372,-450.0,0.0001965,2]
[360167168,1746587450382,-450.0,0.0001965,2]
[360167169,1746587450391,-450.0,0.0001965,2]
[360167170,1746587450400,-151.0,0.0001965,2]
[360167171,1746587450410,-450.0,0.0001965,2]
[360167172,1746587450419,-151.0,0.0001965,2]
[360167173,1746587450428,-156.54074,0.0001965,2]
[360167174,1746587450437,-450.0,0.0001965,2]
[360167175,1746587450446,-450.0,0.0001965,2]
[360167176,1746587450455,-151.0,0.0001965,2]
[360167177,1746587450464,-201.589408,0.0001965,2]
[360167178,1746587450474,-201.589408,0.0001965,2]
[360167179,1746587450483,-151.0,0.0001965,2]
[360167180,1746587450492,-151.0,0.0001965,2]
[360167181,1746587450501,-151.0,0.0001965,2]
[360167182,1746587450511,-180.64510224,0.0001965,2]
[360167183,1746587450520,-151.0,0.00019651,2]
[360167184,1746587450529,-151.0,0.00019651,2]
[360167185,1746587450539,-151.0,0.00019651,2]
[360167186,1746587450548,-253.69422518,0.00019651,2]
[360167187,1746587450558,-172.87993431,0.00019651,2]
[360167188,1746587450567,-450.0,0.00019654,2]
[360167189,1746587450576,-450.0,0.00019654,2]
[360167190,1746587450585,-520.3,0.00019654,2]
[360167191,1746587450595,-1898.99,0.00019654,2]
[360167192,1746587450604,-1219.41,0.00019654,2]
[360167193,1746587450613,-1071.76,0.00019654,2]
[360167194,1746587450622,-450.0,0.00019654,2]
[360167195,1746587450632,-1344.82,0.00019654,2]
[360167196,1746587450641,-450.0,0.00019654,2]
[360167197,1746587450651,-989.03,0.00019654,2]
[360167198,1746587450660,-1335.29,0.00019654,2]
[360167199,1746587450670,-450.0,0.00019654,2]
[360167200,1746587450679,-565.18,0.00019654,2]
[360167201,1746587450689,-450.0,0.00019654,2]
[360167202,1746587450699,-3018.1,0.00019654,2]
[360167203,1746587450708,-27966.58,0.00019654,2]
[360167204,1746587450719,-450.0,0.00019654,2]
[360167205,1746587450728,-996.95,0.00019654,2]
[360167206,1746587450738,-450.0,0.00019654,2]
[360167207,1746587450748,-6360.55,0.00019654,2]
[360167208,1746587450760,-450.0,0.00019654,2]
[360167209,1746587450769,-575.29,0.00019654,2]
[360167210,1746587450779,-450.0,0.00019654,2]
[360167211,1746587450788,-500.0,0.00019654,2]
[360167212,1746587450799,-948.45,0.00019654,2]
[360167213,1746587450808,-450.0,0.00019654,2]
[360167214,1746587450818,-450.0,0.00019654,2]
[360167215,1746587450829,-5288.07,0.00019654,2]
[360167216,1746587450840,-450.0,0.00019654,2]
[360167217,1746587450849,-299.56976096,0.00019654,2]
[360167218,1746587450858,-1001.79,0.00019654,2]
[360167219,1746587450867,-562.85,0.00019654,2]
[360167220,1746587450876,-450.0,0.00019654,2]
[360167221,1746587450886,-453.4,0.00019654,2]
[360167222,1746587450895,-450.0,0.00019654,2]
[360167223,1746587450904,-450.0,0.00019654,2]
[360167224,1746587450915,-450.0,0.00019654,2]
[360167225,1746587450924,-521.61,0.00019654,2]
[360167226,1746587450933,-969.36,0.00019654,2]
[360167227,1746587450943,-989.7,0.00019654,2]
[360167228,1746587450952,-450.0,0.00019654,2]
[360167229,1746587450961,-450.0,0.00019654,2]
[360167230,1746587450971,-278.14677923,0.00019654,2]
[360167231,1746587450980,-2000.01,0.00019654,2]
[360167232,1746587450989,-450.0,0.00019654,2]
[360167233,1746587450998,-572.0,0.00019654,2]
[360167234,1746587451007,-450.0,0.00019654,2]
[360167235,1746587451016,-1195.42,0.00019654,2]
[360167236,1746587451026,-591.27592835,0.00019654,2]
[360167237,1746587451035,-1259.92,0.00019654,2]
[360167238,1746587451044,-804.96,0.00019654,2]
[360167239,1746587451054,-1190.96,0.00019654,2]
[360167240,1746587451063,-843.0,0.00019655,2]
[360167241,1746587451073,-450.0,0.00019655,2]
[360167242,1746587451083,-450.0,0.00019655,2]
[360167243,1746587451092,-450.0,0.00019655,2]
[360167244,1746587451101,-450.0,0.00019655,2]
[360167245,1746587451111,-450.0,0.00019655,2]
[360167246,1746587451121,-450.0,0.00019655,2]
[360167247,1746587451131,-450.0,0.00019655,2]
[360167248,1746587451140,-450.0,0.00019655,2]
[360167249,1746587451150,-450.0,0.00019655,2]
[360167250,1746587451159,-450.0,0.00019655,2]
[360167251,1746587451169,-450.0,0.00019655,2]
[360167252,1746587451178,-450.0,0.00019655,2]
[360167253,1746587451188,-450.0,0.00019655,2]
[360167254,1746587451197,-450.0,0.00019655,2]
[360167255,1746587451207,-450.0,0.00019655,2]
[360167256,1746587451216,-450.0,0.00019655,2]
[360167257,1746587451226,-450.0,0.00019655,2]
[360167258,1746587451235,-450.0,0.00019655,2]
[360167259,1746587451245,-450.0,0.00019655,2]
[360167260,1746587451254,-450.0,0.00019655,2]
[360167261,1746587451263,-535.99,0.00019655,2]
[360167262,1746587451273,-535.99,0.00019655,2]
[360167263,1746587451283,-450.0,0.00019655,2]
[360167264,1746587451292,-450.0,0.00019655,2]
[360167265,1746587451302,-450.0,0.00019655,2]
[360167266,1746587451311,-450.0,0.00019655,2]
[360167267,1746587451320,-474.72,0.00019655,2]
[360167268,1746587451329,-631.66,0.00019655,2]
[360167269,1746587451338,-631.66,0.00019655,2]
[360167270,1746587451348,-151.0,0.00019655,2]
[360167271,1746587451357,-457.47,0.00019655,2]
[360167272,1746587451366,-668.25,0.00019655,2]
[360167273,1746587451375,-668.25,0.00019655,2]
[360167274,1746587451384,-450.0,0.00019655,2]
[360167275,1746587451393,-450.0,0.00019655,2]
[360167276,1746587451402,-450.0,0.00019655,2]
[360167277,1746587451412,-450.0,0.00019655,2]
[360167278,1746587451421,-450.0,0.00019655,2]
[360167279,1746587451431,-731.05,0.00019655,2]
[360167280,1746587451439,-450.0,0.00019655,2]
[360167281,1746587451448,-450.0,0.00019655,2]
[360167282,1746587451457,-450.0,0.00019655,2]
[360167283,1746587451466,-450.0,0.00019655,2]
[360167284,1746587451475,-450.0,0.00019655,2]
[360167285,1746587451485,-450.0,0.00019655,2]
[360167286,1746587451494,-450.0,0.00019655,2]
[360167287,1746587451504,-589.1,0.00019655,2]
[360167288,1746587451513,-614.84,0.00019655,2]
[360167289,1746587451522,-1139.69,0.00019655,2]
[360167290,1746587451531,-366.9464209,0.00019655,2]
[360167291,1746587451540,-450.0,0.00019655,2]
[360167292,1746587451549,-450.0,0.00019655,2]
[360167293,1746587451558,-450.0,0.00019655,2]
[360167294,1746587451567,-750.67,0.00019655,2]
[360167295,1746587451576,-750.67,0.00019655,2]
[360167296,1746587451585,-450.0,0.00019655,2]
[360167297,1746587451594,-771.81,0.00019655,2]
[360167298,1746587451603,-736.24,0.00019655,2]
[360167299,1746587451612,-1232.09,0.00019655,2]
[360167300,1746587451622,-450.0,0.00019655,2]
[360167301,1746587451631,-1004.53,0.00019655,2]
[360167302,1746587451640,-450.0,0.00019655,2]
[360167303,1746587451650,-450.0,0.00019655,2]
[360167304,1746587451659,-450.0,0.00019655,2]
[360167305,1746587451668,-450.0,0.00019655,2]
[360167306,1746587451677,-450.0,0.00019655,2]
[360167307,1746587451687,-459.97,0.00019655,2]
[360167308,1746587451696,-450.0,0.00019655,2]
[360167309,1746587451705,-565.73,0.00019655,2]
[360167310,1746587451714,-450.0,0.00019655,2]
[360167311,1746587451723,-530.22,0.00019655,2]
[360167312,1746587451732,-450.0,0.00019655,2]
[360167313,1746587451742,-26031.64,0.00019655,2]
[360167314,1746587451755,-450.0,0.00019655,2]
[360167315,1746587451764,-450.0,0.00019655,2]
[360167316,1746587451773,-450.0,0.00019655,2]
[360167317,1746587451782,-612.8,0.00019655,2]
[360167318,1746587451791,-450.0,0.00019655,2]
[360167319,1746587451801,-450.0,0.00019655,2]
[360167320,1746587451809,-450.0,0.00019655,2]
[360167321,1746587451819,-450.0,0.00019655,2]
[360167322,1746587451829,-172.45824281,0.00019655,2]
[360167323,1746587451838,-1595.53,0.00019655,2]
[360167324,1746587451847,-155.226145,0.00019655,2]
[360167325,1746587451856,-955.38,0.00019655,2]
[360167326,1746587451865,-643.21803367,0.00019655,2]
[360167327,1746587451874,-1242.08,0.00019655,2]
[360167328,1746587451883,-2272.45,0.00019655,2]
[360167329,1746587451892,-450.0,0.00019655,2]
[360167330,1746587451901,-151.0,0.00019655,2]
[360167331,1746587451910,-1811.56,0.00019655,2]
[360167332,1746587451920,-610.8,0.00019655,2]
[360167333,1746587451929,-450.0,0.00019655,2]
[360167334,1746587451939,-645.63,0.00019655,2]
[360167335,1746587451948,-450.0,0.00019655,2]
[360167336,1746587451957,-472.37,0.00019655,2]
[360167337,1746587451967,-450.0,0.00019655,2]
[360167338,1746587451975,-450.0,0.00019655,2]
[360167339,1746587451985,-456.56,0.00019655,2]
[360167340,1746587451994,-1548.58,0.00019655,2]
[360167341,1746587452003,-450.0,0.00019655,2]
[360167342,1746587452012,-151.0,0.00019655,2]
[360167343,1746587452021,-450.0,0.00019655,2]
[360167344,1746587452030,-151.0,0.00019656,2]
[360167345,1746587452039,-450.0,0.00019656,2]
[360167346,1746587452048,-450.0,0.00019656,2]
[360167347,1746587452057,-151.0,0.00019656,2]
[360167348,1746587452066,-1000.0,0.00019656,2]
[360167349,1746587452076,-1006.04000487,0.00019656,2]
[360167350,1746587452085,-344.22,0.00019656,2]
[360167351,1746587452094,-151.0,0.00019656,2]
[360167352,1746587452104,-450.0,0.00019656,2]
[360167353,1746587452113,-450.0,0.00019656,2]
[360167354,1746587452122,-151.0,0.00019656,2]
[360167355,1746587452132,-151.0,0.00019656,2]
[360167356,1746587452142,-618.31,0.00019656,2]
[360167357,1746587452152,-618.31,0.00019656,2]
[360167358,1746587452162,-450.0,0.00019656,2]
[360167359,1746587452172,-450.0,0.00019656,2]
[360167360,1746587452182,-151.526635,0.00019656,2]
[360167361,1746587452191,-450.0,0.00019656,2]
[360167362,1746587452201,-450.0,0.00019656,2]
[360167363,1746587452212,-450.0,0.00019656,2]
[360167364,1746587452222,-450.0,0.00019656,2]
[360167365,1746587452232,-450.0,0.00019656,2]
[360167366,1746587452241,-151.0,0.00019656,2]
[360167367,1746587452251,-450.0,0.00019656,2]
[360167368,1746587452261,-450.0,0.00019656,2]
[360167369,1746587452271,-151.0,0.00019656,2]
[360167370,1746587452280,-151.0,0.00019656,2]
[360167371,1746587452290,-242.63559,0.00019656,2]
[360167372,1746587452300,-242.63559,0.00019656,2]
[360167373,1746587452310,-257.625343,0.00019656,2]
[360167374,1746587452320,-198.1956,0.00019656,2]
[360167375,1746587452329,-257.625343,0.00019656,2]
[360167376,1746587452339,-151.0,0.00019656,2]
[360167377,1746587452348,-151.0,0.00019656,2]
[360167378,1746587452358,-770.311871,0.00019656,2]
[360167379,1746587452368,-770.311871,0.00019656,2]
[360167380,1746587452378,-450.0,0.00019656,2]
[360167381,1746587452389,-151.0,0.00019656,2]
[360167382,1746587452399,-450.0,0.00019656,2]
[360167383,1746587452409,-151.0,0.00019656,2]
[360167384,1746587452419,-151.0,0.00019656,2]
[360167385,1746587452429,-151.0,0.00019656,2]
[360167386,1746587452438,-450.0,0.00019656,2]
[360167387,1746587452448,-450.0,0.00019656,2]
[360167388,1746587452458,-450.0,0.00019656,2]
[360167389,1746587452468,-450.0,0.00019656,2]
[360167390,1746587452478,-452.98676077,0.00019656,2]
[360167391,1746587452488,-163.99255,0.00019656,2]
[360167392,1746587452499,-151.0,0.00019656,2]
[360167393,1746587452509,-151.0,0.00019656,2]
[360167394,1746587452520,-151.0,0.00019656,2]
[360167395,1746587452530,-450.0,0.00019656,2]
[360167396,1746587452539,-760.47,0.00019656,2]
[360167397,1746587452549,-460.31,0.00019656,2]
[360167398,1746587452559,-450.0,0.00019656,2]
[360167399,1746587452568,-151.0,0.00019656,2]
[360167400,1746587452578,-151.0,0.00019656,2]
[360167401,1746587452587,-151.0,0.00019656,2]
[360167402,1746587452597,-286.6092,0.00019656,2]
[360167403,1746587452608,-476.98,0.00019656,2]
[360167404,1746587452617,-151.0,0.00019656,2]
[360167405,1746587452626,-584.29505901,0.00019656,2]
[360167406,1746587452636,-450.0,0.00019656,2]
[360167407,1746587452646,-151.0,0.00019656,2]
[360167408,1746587452656,-162.040831,0.00019656,2]
[360167409,1746587452666,-502.26992778,0.00019656,2]
[360167410,1746587452676,-450.0,0.00019656,2]
[360167411,1746587452686,-151.0,0.00019656,2]
[360167412,1746587452696,-201.589408,0.00019656,2]
[360167413,1746587452706,-201.589408,0.00019656,2]
[360167414,1746587452716,-151.0,0.00019656,2]
[360167415,1746587452726,-151.0,0.00019656,2]
[360167416,1746587452736,-151.0,0.00019657,2]
[360167417,1746587452746,-151.0,0.00019657,2]
[360167418,1746587452759,-151.0,0.00019657,2]
[360167419,1746587452770,-187.41125,0.00019657,2]
[360167420,1746587452780,-151.0,0.00019657,2]
[360167421,1746587452791,-151.0,0.00019657,2]
[360167422,1746587452801,-283.048749,0.00019657,2]
[360167423,1746587452811,-283.048749,0.00019657,2]
[360167424,1746587452821,-450.0,0.00019659,2]
[360167425,1746587452831,-450.0,0.00019659,2]
[360167426,1746587452842,-450.0,0.00019659,2]
[360167427,1746587452852,-450.0,0.00019659,2]
[360167428,1746587452862,-562.85,0.00019659,2]
[360167429,1746587452872,-450.0,0.00019659,2]
[360167430,1746587452881,-247.3893519,0.00019659,2]
[360167431,1746587452891,-969.36,0.00019659,2]
[360167432,1746587452901,-989.7,0.00019659,2]
[360167433,1746587452911,-450.0,0.00019659,2]
[360167434,1746587452920,-572.0,0.00019659,2]
[360167435,1746587452930,-450.0,0.00019659,2]
[360167436,1746587452940,-1259.92,0.00019659,2]
[360167437,1746587452950,-450.0,0.00019659,2]
[360167438,1746587452960,-450.0,0.00019659,2]
[360167439,1746587452970,-450.0,0.0001966,2]
[360167440,1746587452980,-450.0,0.0001966,2]
[360167441,1746587452989,-618.31,0.0001966,2]
[360167442,1746587452999,-450.0,0.0001966,2]
[360167443,1746587453009,-450.0,0.0001966,2]
[360167444,1746587453020,-450.0,0.0001966,2]
[360167445,1746587453030,-450.0,0.0001966,2]
[360167446,1746587453040,-450.0,0.0001966,2]
[360167447,1746587453050,-488.56800171,0.0001966,2]
[360167448,1746587453059,-450.0,0.0001966,2]
[360167449,1746587453069,-450.0,0.0001966,2]
[360167450,1746587453079,-450.0,0.0001966,2]
[360167451,1746587453089,-450.0,0.0001966,2]
[360167452,1746587453099,-450.0,0.0001966,2]
[360167453,1746587453109,-450.0,0.0001966,2]
[360167454,1746587453119,-450.0,0.0001966,2]
[360167455,1746587453128,-450.0,0.0001966,2]
[360167456,1746587453138,-535.99,0.0001966,2]
[360167457,1746587453148,-450.0,0.0001966,2]
[360167458,1746587453158,-474.72,0.0001966,2]
[360167459,1746587453168,-631.66,0.0001966,2]
[360167460,1746587453179,-457.47,0.0001966,2]
[360167461,1746587453189,-668.25,0.0001966,2]
[360167462,1746587453198,-450.0,0.0001966,2]
[360167463,1746587453209,-450.0,0.0001966,2]
[360167464,1746587453220,-450.0,0.0001966,2]
[360167465,1746587453229,-450.0,0.0001966,2]
[360167466,1746587453239,-450.0,0.0001966,2]
[360167467,1746587453249,-450.0,0.0001966,2]
[360167468,1746587453259,-486.16742694,0.0001966,2]
[360167469,1746587453269,-450.0,0.0001966,2]
[360167470,1746587453279,-520.3,0.0001966,2]
[360167471,1746587453288,-450.0,0.0001966,2]
[360167472,1746587453299,-1898.99,0.0001966,2]
[360167473,1746587453309,-614.84,0.0001966,2]
[360167474,1746587453319,-1219.41,0.0001966,2]
[360167475,1746587453329,-1071.76,0.0001966,2]
[360167476,1746587453339,-450.0,0.0001966,2]
[360167477,1746587453349,-1344.82,0.0001966,2]
[360167478,1746587453359,-450.0,0.0001966,2]
[360167479,1746587453369,-989.03,0.0001966,2]
[360167480,1746587453378,-1335.29,0.0001966,2]
[360167481,1746587453388,-750.67,0.0001966,2]
[360167482,1746587453398,-450.0,0.0001966,2]
[360167483,1746587453407,-771.81,0.0001966,2]
[360167484,1746587453418,-450.0,0.0001966,2]
[360167485,1746587453427,-1232.09,0.0001966,2]
[360167486,1746587453437,-565.18,0.0001966,2]
[360167487,1746587453446,-450.0,0.0001966,2]
[360167488,1746587453456,-1004.53,0.0001966,2]
[360167489,1746587453466,-450.0,0.0001966,2]
[360167490,1746587453476,-3018.1,0.0001966,2]
[360167491,1746587453486,-450.0,0.0001966,2]
[360167492,1746587453495,-450.0,0.0001966,2]
[360167493,1746587453504,-27966.58,0.0001966,2]
[360167494,1746587453514,-459.97,0.0001966,2]
[360167495,1746587453523,-450.0,0.0001966,2]
[360167496,1746587453533,-565.73,0.0001966,2]
[360167497,1746587453542,-450.0,0.0001966,2]
[360167498,1746587453552,-530.22,0.0001966,2]
[360167499,1746587453562,-450.0,0.0001966,2]
[360167500,1746587453571,-996.95,0.0001966,2]
[360167501,1746587453582,-450.0,0.0001966,2]
[360167502,1746587453591,-450.0,0.0001966,2]
[360167503,1746587453601,-6360.55,0.0001966,2]
[360167504,1746587453611,-575.29,0.0001966,2]
[360167505,1746587453621,-500.0,0.0001966,2]
[360167506,1746587453630,-450.0,0.0001966,2]
[360167507,1746587453640,-948.45,0.0001966,2]
[360167508,1746587453649,-450.0,0.0001966,2]
[360167509,1746587453659,-5288.07,0.0001966,2]
[360167510,1746587453669,-1001.79,0.0001966,2]
[360167511,1746587453679,-450.0,0.0001966,2]
[360167512,1746587453688,-450.0,0.0001966,2]
[360167513,1746587453698,-453.4,0.0001966,2]
[360167514,1746587453710,-450.0,0.0001966,2]
[360167515,1746587453719,-521.61,0.0001966,2]
[360167516,1746587453729,-450.0,0.0001966,2]
[360167517,1746587453740,-2272.45,0.0001966,2]
[360167518,1746587453753,-2000.01,0.0001966,2]
[360167519,1746587453764,-450.0,0.0001966,2]
[360167520,1746587453774,-450.0,0.0001966,2]
[360167521,1746587453785,-450.0,0.0001966,2]
[360167522,1746587453798,-1195.42,0.0001966,2]
[360167523,1746587453809,-450.0,0.0001966,2]
[360167524,1746587453819,-450.0,0.0001966,2]
[360167525,1746587453831,-450.0,0.0001966,2]
[360167526,1746587453842,-456.56,0.0001966,2]
[360167527,1746587453854,-450.0,0.0001966,2]
[360167528,1746587453864,-450.0,0.0001966,2]
[360167529,1746587453874,-804.96,0.0001966,2]
[360167530,1746587453884,-450.0,0.0001966,2]
[360167531,1746587453895,-450.0,0.0001966,2]
[360167532,1746587453906,-450.0,0.0001966,2]
[360167533,1746587453918,-450.0,0.0001966,2]
[360167534,1746587453928,-450.0,0.0001966,2]
[360167535,1746587453939,-1190.96,0.0001966,2]
[360167536,1746587453949,-500.0,0.0001966,2]
[360167537,1746587453961,-500.0,0.00019661,2]
[360167538,1746587453972,-6022.15675595,0.00019661,2]
[360167539,1746587453984,-151.0,0.00019661,2]
[360167540,1746587453995,-151.0,0.00019661,2]
[360167541,1746587454005,-152.120223,0.00019661,2]
[360167542,1746587454016,-151.0,0.00019661,2]
[360167543,1746587454027,-238.14348,0.00019661,2]
[360167544,1746587454039,-238.14348,0.00019661,2]
[360167545,1746587454051,-151.0,0.00019661,2]
[360167546,1746587454060,-151.0,0.00019661,2]
[360167547,1746587454071,-151.0,0.00019661,2]
[360167548,1746587454081,-151.0,0.00019661,2]
[360167549,1746587454091,-151.0,0.00019661,2]
[360167550,1746587454102,-151.0,0.00019661,2]
[360167551,1746587454112,-151.0,0.00019661,2]
[360167552,1746587454121,-151.0,0.00019661,2]
[360167553,1746587454133,-151.0,0.00019661,2]
[360167554,1746587454143,-151.0,0.00019661,2]
[360167555,1746587454153,-151.0,0.00019661,2]
[360167556,1746587454162,-151.0,0.00019661,2]
[360167557,1746587454172,-151.0,0.00019661,2]
[360167558,1746587454182,-179.090472,0.00019661,2]
[360167559,1746587454192,-179.090472,0.00019661,2]
[360167560,1746587454202,-151.0,0.00019661,2]
[360167561,1746587454213,-151.0,0.00019661,2]
[360167562,1746587454223,-286.128882,0.00019661,2]
[360167563,1746587454233,-151.0,0.00019661,2]
[360167564,1746587454243,-152.796473,0.00019661,2]
[360167565,1746587454253,-450.0,0.00019661,2]
[360167566,1746587454263,-450.0,0.00019661,2]
[360167567,1746587454273,-194.63251718,0.00019661,2]
[360167568,1746587454283,-151.0,0.00019661,2]
[360167569,1746587454293,-151.0,0.00019661,2]
[360167570,1746587454304,-151.0,0.00019661,2]
[360167571,1746587454315,-450.0,0.00019661,2]
[360167572,1746587454324,-242.63559,0.00019661,2]
[360167573,1746587454334,-242.63559,0.00019661,2]
[360167574,1746587454344,-450.0,0.00019661,2]
[360167575,1746587454353,-450.0,0.00019661,2]
[360167576,1746587454363,-450.0,0.00019661,2]
[360167577,1746587454372,-257.625343,0.00019661,2]
[360167578,1746587454383,-257.625343,0.00019661,2]
[360167579,1746587454392,-450.0,0.00019661,2]